fUSD/lending_fUSD_20240620
["ID","MTS","AMOUNT","RATE_DAILY","PERIOD"]
[329936444,1718847041305,-578.99,0.00013698,2]
[329936445,1718847041316,-500.0,0.00013698,2]
[329936446,1718847041326,-557.28,0.00013698,2]
[329936447,1718847041336,-1125.54,0.00013698,2]
[329936448,1718847041346,-500.0,0.00013698,2]
[329936449,1718847041356,-1543.13,0.00013698,2]
[329936450,1718847041365,-500.0,0.00013698,2]
[329936451,1718847041376,-500.0,0.00013698,2]
[329936452,1718847041385,-444.84327113,0.00013698,2]
[329936453,1718847041399,-720.08672887,0.00013698,2]
[329936454,1718847041410,-500.0,0.00013698,2]
[329936455,1718847041420,-1008.84,0.00013698,2]
[329936456,1718847041430,-684.68,0.00013698,2]
[329936457,1718847041440,-500.0,0.00013698,2]
[329936458,1718847041449,-500.0,0.00013698,2]
[329936459,1718847041459,-500.0,0.00013698,2]
[329936460,1718847041468,-828.25,0.00013698,2]
[329936461,1718847041478,-500.0,0.00013698,2]
[329936462,1718847041492,-1029.99,0.00013698,2]
[329936463,1718847041502,-500.0,0.00013698,2]
[329936464,1718847041512,-462.98299292,0.00013698,2]
[329936465,1718847041524,-842.24700708,0.00013698,2]
[329936466,1718847041534,-417.25,0.00013698,2]
[329936467,1718847041543,-500.0,0.00013698,2]
[329936468,1718847041554,-500.0,0.00013698,2]
[329936469,1718847041564,-862.23,0.00013698,2]
[329936470,1718847041574,-1218.16,0.00013698,2]
[329936471,1718847041584,-500.0,0.00013698,2]
[329936472,1718847041596,-563.59546478,0.00013698,2]
[329936473,1718847041611,-970.80453522,0.00013698,2]
[329936474,1718847041621,-652.39,0.00013698,2]
[329936475,1718847041631,-500.0,0.00013698,2]
[329936476,1718847041640,-639.09,0.00013698,2]
[329936477,1718847041649,-561.98,0.00013698,2]
[329936478,1718847041658,-648.13,0.00013698,2]
[329936479,1718847041668,-500.0,0.00013698,2]
[329936480,1718847041678,-1361.11,0.00013698,2]
[329936481,1718847041688,-500.0,0.00013698,2]
[329936482,1718847041698,-500.0,0.00013698,2]
[329936483,1718847041708,-973.06,0.00013698,2]
[329936484,1718847041718,-626.39,0.00013698,2]
[329936485,1718847041728,-500.0,0.00013698,2]
[329936486,1718847041738,-500.0,0.00013698,2]
[329936487,1718847041747,-936.65,0.00013698,2]
[329936488,1718847041757,-500.0,0.00013698,2]
[329936489,1718847041767,-622.4403132,0.00013698,2]
[329936490,1718847041779,-374.94082365,0.00013698,2]
[329936491,1718847041791,-283.13886315,0.00013698,2]
[329936492,1718847041801,-500.0,0.00013698,2]
[329936493,1718847041811,-931.95,0.00013698,2]
[329936494,1718847041822,-872.81,0.00013698,2]
[329936495,1718847041832,-526.5,0.00013698,2]
[329936496,1718847041842,-500.0,0.00013698,2]
[329936497,1718847041851,-500.0,0.00013698,2]
[329936498,1718847041861,-895.08,0.00013698,2]
[329936499,1718847041870,-1523.92113684,0.00013698,2]
[329936500,1718847041884,-377.91886316,0.00013698,2]
[329936501,1718847041893,-388.08113684,0.00013698,2]
[329936502,1718847042390,-263.51,0.00013439,2]
[329936503,1718847042401,-498.82886316,0.00013698,2]
[329936504,1718847042411,-1489.0,0.00013698,2]
[329936505,1718847042420,-614.54,0.00013698,2]
[329936506,1718847042430,-1263.01,0.00013698,2]
[329936507,1718847042443,-1316.93,0.00013698,2]
[329936508,1718847042452,-955.12,0.00013698,2]
[329936509,1718847042462,-2096.9,0.00013698,2]
[329936510,1718847042472,-500.0,0.00013698,2]
[329936511,1718847042482,-909.43,0.00013698,2]
[329936512,1718847042491,-1289.68,0.00013698,2]
[329936513,1718847042501,-500.0,0.00013698,2]
[329936514,1718847042511,-500.0,0.00013698,2]
[329936515,1718847042521,-1384.27,0.00013698,2]
[329936516,1718847042531,-3107.98,0.00013698,2]
[329936517,1718847042540,-793.02,0.00013698,2]
[329936518,1718847042550,-500.0,0.00013698,2]
[329936519,1718847042559,-500.0,0.00013698,2]
[329936520,1718847042568,-671.86,0.00013698,2]
[329936521,1718847042578,-2859.43,0.00013698,2]
[329936522,1718847042588,-524.76,0.00013698,2]
[329936523,1718847042598,-1041.97,0.00013698,2]
[329936524,1718847042607,-1705.64,0.00013698,2]
[329936525,1718847042618,-817.87,0.00013698,2]
[329936526,1718847042628,-1179.96,0.00013698,2]
[329936527,1718847042638,-502.49,0.00013698,2]
[329936528,1718847042647,-510.76,0.00013698,2]
[329936529,1718847042658,-681.35,0.00013698,2]
[329936530,1718847042668,-16868.00073683,0.00013698,2]
[329936531,1718847042680,-1751.0,0.00013698,2]
[329936532,1718847042693,-13888.79313183,0.00013698,2]
[329936535,1718847043162,-637.3124501,0.00013698,2]
[329936536,1718847043175,-986.52553642,0.00013698,2]
[329936537,1718847043188,-4759.08758781,0.00013698,2]
[329936538,1718847043199,-893.79055701,0.00013698,2]
[329936539,1718847043209,-854.77570914,0.00013698,2]
[329936540,1718847043222,-44.42429086,0.00013698,2]
[329936541,1718847043232,-1075.60425064,0.00013698,2]
[329936542,1718847043243,-143.13574936,0.00013698,2]
[329936543,1718847043253,-500.0,0.00013698,2]
[329936544,1718847043263,-500.0,0.00013698,2]
[329936545,1718847043274,-1377.22,0.00013698,2]
[329936546,1718847043284,-1410.5,0.00013698,2]
[329936547,1718847043294,-1436.25,0.00013698,2]
[329936548,1718847043304,-500.0,0.00013698,2]
[329936549,1718847043314,-29165.8,0.00013698,2]
[329936550,1718847043324,-1115.89,0.00013698,2]
[329936551,1718847043334,-500.0,0.00013698,2]
[329936552,1718847043344,-4288.25,0.00013698,2]
[329936553,1718847043354,-500.0,0.00013698,2]
[329936556,1718847043364,-572.42,0.00013698,2]
[329936559,1718847043374,-2833.08,0.00013698,2]
[329936561,1718847043383,-500.0,0.00013698,2]
[329936564,1718847043393,-500.0,0.00013698,2]
[329936566,1718847043402,-1263.36,0.00013698,2]
[329936569,1718847043412,-3950.23,0.00013698,2]
[329936572,1718847043421,-1104.75,0.00013698,2]
[329936575,1718847043431,-500.0,0.00013698,2]
[329936577,1718847043443,-1946.8,0.00013698,2]
[329936579,1718847043452,-686.83,0.00013698,2]
[329936581,1718847043461,-500.0,0.00013698,2]
[329936582,1718847043470,-19454.44,0.00013698,2]
[329936583,1718847043480,-500.0,0.00013698,2]
[329936584,1718847043489,-500.0,0.00013698,2]
[329936585,1718847043499,-1010.33,0.00013698,2]
[329936586,1718847043508,-2640.36,0.00013698,2]
[329936587,1718847043519,-763.52,0.00013698,2]
[329936588,1718847043529,-500.0,0.00013698,2]
[329936589,1718847043538,-500.0,0.00013698,2]
[329936590,1718847043548,-539.36,0.00013698,2]
[329936591,1718847043557,-2456.21,0.00013698,2]
[329936592,1718847043567,-500.0,0.00013698,2]
[329936593,1718847043576,-16354.54,0.00013698,2]
[329936594,1718847043586,-993.44,0.00013698,2]
[329936595,1718847043596,-500.0,0.00013698,2]
[329936596,1718847043606,-1119.85,0.00013698,2]
[329936597,1718847043616,-3146.24,0.00013698,2]
[329936598,1718847043626,-996.98,0.00013698,2]
[329936599,1718847043636,-500.0,0.00013698,2]
[329936600,1718847043646,-785.9,0.00013698,2]
[329936601,1718847043656,-955.41,0.00013698,2]
[329936602,1718847043673,-1159.05,0.00013698,2]
[329936603,1718847043683,-628.15,0.00013698,2]
[329936604,1718847043696,-1528.92,0.00013698,2]
[329936605,1718847043707,-775.9,0.00013698,2]
[329936606,1718847043717,-12002.98,0.00013698,2]
[329936607,1718847043728,-500.0,0.00013698,2]
[329936608,1718847043738,-785.53,0.00013698,2]
[329936609,1718847043749,-654.76,0.00013698,2]
[329936610,1718847043759,-500.0,0.00013698,2]
[329936611,1718847043769,-9066.79,0.00013698,2]
[329936612,1718847043779,-500.0,0.00013698,2]
[329936613,1718847043790,-500.0,0.00013698,2]
[329936614,1718847043801,-1596.51,0.00013698,2]
[329936615,1718847043811,-5922.25,0.00013698,2]
[329936616,1718847043822,-1624.09,0.00013698,2]
[329936617,1718847043832,-2022.35,0.00013698,2]
[329936619,1718847043841,-500.0,0.00013698,2]
[329936620,1718847043854,-500.0,0.00013698,2]
[329936622,1718847043863,-691.97,0.00013698,2]
[329936624,1718847043873,-2411.17,0.00013698,2]
[329936626,1718847043882,-956.26,0.00013698,2]
[329936628,1718847043893,-3708.48,0.00013698,2]
[329936629,1718847043903,-2135.58,0.00013698,2]
[329936630,1718847043913,-5208.89,0.00013698,2]
[329936631,1718847043924,-686.17,0.00013698,2]
[329936633,1718847043934,-1348.55,0.00013698,2]
[329936635,1718847043947,-7079.09,0.00013698,2]
[329936637,1718847043956,-838.41,0.00013698,2]
[329936639,1718847043967,-616.44,0.00013698,2]
[329936640,1718847043977,-6180.78,0.00013698,2]
[329936641,1718847043986,-872.49,0.00013698,2]
[329936643,1718847043996,-500.0,0.00013698,2]
[329936644,1718847044007,-2510.8767688,0.00013698,2]
[329936645,1718847044022,-2032.2,0.00013698,2]
[329936646,1718847044035,-19417.1432312,0.00013698,2]
[329936647,1718847044045,-844.03,0.00013698,2]
[329936648,1718847044056,-1489.18,0.00013698,2]
[329936649,1718847044070,-867.41,0.00013698,2]
[329936650,1718847044080,-717.37212468,0.00013698,2]
[329936651,1718847044751,-578.93787532,0.00013698,2]
[329936652,1718847044762,-3366.84,0.00013698,2]
[329936653,1718847044774,-1769.39,0.00013698,2]
[329936654,1718847044784,-500.0,0.00013698,2]
[329936655,1718847044796,-1325.73,0.00013698,2]
[329936656,1718847044807,-2622.93,0.00013698,2]
[329936657,1718847044817,-500.0,0.00013698,2]
[329936658,1718847044828,-568.49,0.00013698,2]
[329936659,1718847044846,-500.0,0.00013698,2]
[329936660,1718847044856,-3234.79,0.00013698,2]
[329936661,1718847044868,-906.68,0.00013698,2]
[329936662,1718847044879,-836.19,0.00013698,2]
[329936663,1718847044890,-632.64,0.00013698,2]
[329936664,1718847044901,-711.53,0.00013698,2]
[329936665,1718847044914,-1713.43,0.00013698,2]
[329936666,1718847044926,-500.0,0.00013698,2]
[329936667,1718847044936,-7437.52,0.00013698,2]
[329936668,1718847044948,-5144.93,0.00013698,2]
[329936669,1718847044958,-1432.15,0.00013698,2]
[329936670,1718847044969,-1931.71,0.00013698,2]
[329936671,1718847044979,-500.0,0.00013698,2]
[329936672,1718847044989,-2515.13,0.00013698,2]
[329936673,1718847044999,-1159.6,0.00013698,2]
[329936674,1718847045009,-500.0,0.00013698,2]
[329936675,1718847045019,-888.95,0.00013698,2]
[329936676,1718847045028,-836.4,0.00013698,2]
[329936677,1718847045038,-880.3,0.00013698,2]
[329936678,1718847045048,-7522.09,0.00013698,2]
[329936679,1718847045059,-2405.12440986,0.00013698,2]
[329936680,1718847045883,-1822.31939735,0.00013698,2]
[329936690,1718847047094,-2948.96619279,0.00013698,2]
[329936691,1718847047104,-346.01060721,0.00013698,2]
[329936692,1718847047118,-3823.42939279,0.00013698,2]
[329936693,1718847047128,-1112.87,0.00013698,2]
[329936694,1718847047137,-1408.38342934,0.00013698,2]
[329936696,1718847070482,1490.26746658,0.00024,30]
[329936697,1718847419701,2864.89512758,0.00024,30]
[329936698,1718847469313,151.0,0.0001995,30]
[329936699,1718847876564,169.0,0.000259,120]
[329936709,1718848232430,-268.5619315,0.00010029,2]
[329936712,1718848232441,-66.2180685,0.00010029,2]
[329936715,1718848232451,-264.24765356,0.00010088,2]
[329936718,1718848232462,-155.0,0.00010088,2]
[329936721,1718848232473,-217.7714529,0.00010089,2]
[329936725,1718848232483,-408.26006483,0.00010089,2]
[329936728,1718848232492,-1329.77,0.00011878,2]
[329936731,1718848232501,-150.0,0.0001189,2]
[329936733,1718848232510,-2316.36,0.00011897,2]
[329936735,1718848232519,-362.46,0.00011897,2]
[329936737,1718848232532,-1102.18,0.000119,2]
[329936739,1718848232541,-1208.82,0.00011911,2]
[329936741,1718848232551,-250.0,0.00011935,2]
[329936742,1718848232560,-250.0,0.00011947,2]
[329936743,1718848232570,-4333.51611597,0.00011962,2]
[329936744,1718848232581,-831.66201726,0.00011962,2]
[329936745,1718848232592,-578.5596183,0.00011962,2]
[329936746,1718848232603,-1184.85534718,0.00011962,2]
[329936747,1718848232617,-1033.7,0.00011962,2]
[329936748,1718848232630,-2670.35134403,0.00011962,2]
[329936749,1718848232642,-267.14503174,0.00011962,2]
[329936750,1718848232655,-458.885,0.00011962,2]
[329936751,1718848232666,-1716.95652717,0.00011962,2]
[329936752,1718848232677,-2279.84017614,0.00011962,2]
[329936753,1718848232688,-991.72163097,0.00011962,2]
[329936754,1718848232699,-1711.85719124,0.00011962,2]
[329936755,1718848232708,-1550.41315938,0.00012,2]
[329936756,1718848232718,-169.02,0.00012048,2]
[329936757,1718848232727,-303.2,0.00012055,2]
[329936758,1718848232737,-1000.0,0.00012072,2]
[329936759,1718848232746,-350.43,0.00012076,2]
[329936761,1718848232755,-334.78,0.00012293,2]
[329936762,1718848232764,-26578.81581537,0.000123,2]
[329936763,1718848232776,-155.91858101,0.00012326,2]
[329936764,1718848232785,-500.0,0.00012328,2]
[329936765,1718848232794,-500.0,0.00012602,2]
[329936766,1718848232804,-154.21,0.00012732,2]
[329936767,1718848232813,-154.21,0.00012736,2]
[329936768,1718848232822,-154.21,0.0001274,2]
[329936769,1718848232831,-154.21,0.00012745,2]
[329936770,1718848232840,-154.21,0.00012749,2]
[329936771,1718848232849,-154.21,0.00012753,2]
[329936772,1718848232858,-154.21,0.00012757,2]
[329936773,1718848232867,-154.21,0.00012762,2]
[329936774,1718848232877,-154.21,0.00012766,2]
[329936775,1718848232886,-154.21,0.0001277,2]
[329936776,1718848232895,-154.21,0.00012774,2]
[329936777,1718848232905,-154.21,0.00012779,2]
[329936778,1718848232915,-154.21,0.00012783,2]
[329936779,1718848232925,-154.21,0.00012787,2]
[329936780,1718848232934,-154.21,0.00012791,2]
[329936781,1718848232943,-154.21,0.00012795,2]
[329936782,1718848232952,-947.156765,0.00012861,2]
[329936783,1718848232961,-1053.687018,0.00012861,2]
[329936784,1718848232971,-183.460006,0.00012861,2]
[329936785,1718848232980,-169.981476,0.00012861,2]
[329936786,1718848232989,-181.622988,0.00012861,2]
[329936787,1718848232998,-500.0,0.00012863,2]
[329936788,1718848233008,-500.0,0.00012863,2]
[329936789,1718848233017,-500.0,0.00012863,2]
[329936790,1718848233029,-500.0,0.00012863,2]
[329936791,1718848233039,-500.0,0.00012863,2]
[329936792,1718848233048,-500.0,0.00012863,2]
[329936793,1718848233057,-151.0,0.00012863,2]
[329936794,1718848233066,-979.0,0.00012863,2]
[329936795,1718848233075,-151.0,0.00012863,2]
[329936796,1718848233084,-151.0,0.00012863,2]
[329936797,1718848233093,-151.0,0.00012863,2]
[329936798,1718848233103,-151.0,0.00012863,2]
[329936799,1718848233112,-160.0,0.00012863,2]
[329936800,1718848233121,-500.0,0.00012863,2]
[329936801,1718848233130,-830.0,0.00012863,2]
[329936802,1718848233139,-500.0,0.00012876,2]
[329936803,1718848233148,-1021.7386118,0.00013,2]
[329936804,1718848233157,-852.03,0.00013014,2]
[329936805,1718848233165,-835.7,0.00013014,2]
[329936806,1718848233175,-947.156765,0.00013022,2]
[329936807,1718848233184,-1053.687018,0.00013022,2]
[329936808,1718848233193,-962.98127378,0.00013033,2]
[329936809,1718848233202,-4508.54677531,0.00013093,2]
[329936810,1718848233212,-500.0,0.0001315,2]
[329936811,1718848233221,-947.156765,0.00013183,2]
[329936812,1718848233230,-1053.687018,0.00013183,2]
[329936813,1718848233240,-172.91,0.00013199,2]
[329936814,1718848233249,-151.36,0.0001326,2]
[329936815,1718848233258,-947.156765,0.00013343,2]
[329936816,1718848233268,-1053.687018,0.00013343,2]
[329936817,1718848233280,-500.0,0.00013424,2]
[329936818,1718848233289,-2000.0,0.000135,2]
[329936819,1718848233301,-947.156765,0.00013504,2]
[329936820,1718848233310,-1053.687018,0.00013504,2]
[329936821,1718848233319,-169.981476,0.00013504,2]
[329936822,1718848233328,-181.622988,0.00013504,2]
[329936823,1718848233338,-1000.0,0.00013581,2]
[329936824,1718848233347,-350.43,0.00013585,2]
[329936825,1718848233356,-747.34669543,0.00013597,2]
[329936826,1718848233366,-322.02916201,0.00013597,2]
[329936827,1718848233376,-239.20576403,0.00013598,2]
[329936828,1718848233385,-854.7118,0.00013598,2]
[329936829,1718848233394,-441.002,0.00013598,2]
[329936830,1718848233404,-3382.4418,0.00013598,2]
[329936831,1718848233414,-10000.0,0.00013598,2]
[329936832,1718848233424,-246.7251,0.00013598,2]
[329936833,1718848233433,-747.3466954,0.0001364,2]
[329936834,1718848233443,-4687.38297342,0.0001368,2]
[329936835,1718848233452,-7000.0,0.0001368,2]
[329936836,1718848233467,-747.3466954,0.00013684,2]
[329936837,1718848233476,-157.12524034,0.00013688,2]
[329936838,1718848233485,-294.12736787,0.00013695,2]
[329936839,1718848233494,-317.92141373,0.00013696,2]
[329936840,1718848233506,-627.56651407,0.00013696,2]
[329936841,1718848233516,-8255.26280728,0.00013696,2]
[329936842,1718848233527,-1452.47015622,0.00013696,2]
[329936843,1718848233538,-354.11811028,0.00013696,2]
[329936844,1718848233547,-238.4878946,0.00013696,2]
[329936845,1718848233556,-450.53352784,0.00013696,2]
[329936846,1718848233565,-235.74926702,0.00013696,2]
[329936847,1718848233574,-432.99880663,0.00013696,2]
[329936848,1718848233583,-290.2170753,0.00013696,2]
[329936849,1718848233591,-167.41169121,0.00013696,2]
[329936850,1718848233601,-877.6007009,0.00013696,2]
[329936851,1718848233612,-556.52279803,0.00013697,2]
[329936852,1718848233621,-11954.72,0.00013697,2]
[329936853,1718848233631,-11954.72,0.00013697,2]
[329936854,1718848233640,-11954.72,0.00013697,2]
[329936855,1718848233650,-11954.72,0.00013697,2]
[329936856,1718848233659,-11954.72,0.00013697,2]
[329936857,1718848233668,-11954.72,0.00013697,2]
[329936858,1718848233678,-11954.72,0.00013697,2]
[329936859,1718848233688,-11954.72,0.00013697,2]
[329936860,1718848233697,-11954.72,0.00013697,2]
[329936861,1718848233707,-11954.72,0.00013697,2]
[329936862,1718848233717,-11954.72,0.00013697,2]
[329936863,1718848233727,-11954.72,0.00013697,2]
[329936864,1718848233736,-501.61019669,0.00013698,2]
[329936865,1718848233745,-500.51433968,0.00013698,2]
[329936866,1718848233755,-235.41960762,0.00013698,2]
[329936867,1718848233764,-511.55276436,0.00013698,2]
[329936868,1718848233774,-488.06321839,0.00013698,2]
[329936869,1718848233786,-500.49378665,0.00013698,2]
[329936870,1718848233795,-501.36804916,0.00013698,2]
[329936871,1718848233804,-501.21650352,0.00013698,2]
[329936872,1718848233813,-501.75400027,0.00013698,2]
[329936873,1718848233822,-501.22150893,0.00013698,2]
[329936874,1718848233831,-510.19802103,0.00013698,2]
[329936875,1718848233841,-509.7245877,0.00013698,2]
[329936876,1718848233850,-500.61177746,0.00013698,2]
[329936877,1718848233860,-589.00202506,0.00013698,2]
[329936878,1718848233869,-501.1244545,0.00013698,2]
[329936879,1718848233879,-501.79339732,0.00013698,2]
[329936880,1718848233888,-158.33676857,0.00013698,2]
[329936881,1718848233898,-500.97060545,0.00013698,2]
[329936882,1718848233908,-502.07819501,0.00013698,2]
[329936883,1718848233917,-502.14219056,0.00013698,2]
[329936884,1718848233929,-502.09603713,0.00013698,2]
[329936885,1718848233939,-501.4856162,0.00013698,2]
[329936886,1718848233949,-501.50262792,0.00013698,2]
[329936887,1718848233958,-522.17164937,0.00013698,2]
[329936888,1718848233967,-529.13228116,0.00013698,2]
[329936889,1718848233977,-500.67314596,0.00013698,2]
[329936890,1718848233986,-509.53926721,0.00013698,2]
[329936891,1718848233995,-500.75337525,0.00013698,2]
[329936892,1718848234005,-545.37542259,0.00013698,2]
[329936893,1718848234014,-501.89403724,0.00013698,2]
[329936894,1718848234023,-245.11686275,0.00013698,2]
[329936895,1718848234035,-528.88323393,0.00013698,2]
[329936896,1718848234044,-579.84,0.00013698,2]
[329936897,1718848234053,-502.19665062,0.00013698,2]
[329936898,1718848234062,-501.27509998,0.00013698,2]
[329936899,1718848234071,-503.53588474,0.00013698,2]
[329936900,1718848234080,-501.34036137,0.00013698,2]
[329936901,1718848234090,-500.0,0.00013698,2]
[329936902,1718848234100,-457.3914354,0.00013698,2]
[329936903,1718848234110,-503.21550556,0.00013698,2]
[329936904,1718848234119,-583.05,0.00013698,2]
[329936905,1718848234129,-506.15113643,0.00013698,2]
[329936906,1718848234138,-501.1497632,0.00013698,2]
[329936907,1718848234147,-500.6534605,0.00013698,2]
[329936908,1718848234157,-504.79915124,0.00013698,2]
[329936909,1718848234167,-500.0,0.00013698,2]
[329936910,1718848234176,-519.6884599,0.00013698,2]
[329936911,1718848234186,-501.26821215,0.00013698,2]
[329936912,1718848234195,-500.0,0.00013698,2]
[329936913,1718848234204,-502.31873971,0.00013698,2]
[329936914,1718848234214,-500.46637903,0.00013698,2]
[329936915,1718848234223,-505.03441456,0.00013698,2]
[329936916,1718848234232,-675.68,0.00013698,2]
[329936917,1718848234242,-500.33929573,0.00013698,2]
[329936918,1718848234252,-509.3517351,0.00013698,2]
[329936919,1718848234262,-501.64911095,0.00013698,2]
[329936920,1718848234271,-501.73841863,0.00013698,2]
[329936921,1718848234283,-159.90911677,0.00013698,2]
[329936922,1718848234293,-530.4063128,0.00013698,2]
[329936923,1718848234302,-250.05910736,0.00013698,2]
[329936924,1718848234321,-256.806532,0.00013698,2]
[329936925,1718848234330,-502.87017322,0.00013698,2]
[329936926,1718848234339,-444.54238669,0.00013698,2]
[329936927,1718848234469,-57.07049272,0.00013698,2]
[329936928,1718848234478,-442.22931138,0.00013698,2]
[329936929,1718848234490,-61.57942978,0.00013698,2]
[329936930,1718848234499,-543.46,0.00013698,2]
[329936931,1718848234510,-534.96659903,0.00013698,2]
[329936932,1718848234520,-786.47,0.00013698,2]
[329936933,1718848234533,-508.33122194,0.00013698,2]
[329936934,1718848234543,-53.51459803,0.00013698,2]
[329936935,1718848234556,-561.15269484,0.00013698,2]
[329936936,1718848234566,-500.0,0.00013698,2]
[329936937,1718848234575,-502.01035427,0.00013698,2]
[329936938,1718848234585,-408.70431436,0.00013698,2]
[329936939,1718848234595,-502.24707216,0.00013698,2]
[329936940,1718848234603,-501.89890278,0.00013698,2]
[329936941,1718848234613,-501.95770993,0.00013698,2]
[329936942,1718848234622,-506.68331132,0.00013698,2]
[329936943,1718848234631,-519.44576045,0.00013698,2]
[329936944,1718848234640,-163.94018592,0.00013698,2]
[329936945,1718848234653,-338.02183098,0.00013698,2]
[329936946,1718848234662,-565.88,0.00013698,2]
[329936947,1718848234671,-505.8831268,0.00013698,2]
[329936948,1718848234681,-505.41577234,0.00013698,2]
[329936949,1718848234690,-304.79926868,0.00013698,2]
[329936950,1718848234702,-198.2894654,0.00013698,2]
[329936951,1718848234711,-141.22009715,0.00013698,2]
[329936952,1718848234726,-360.19130136,0.00013698,2]
[329936953,1718848234736,-500.0,0.00013698,2]
[329936954,1718848234746,-500.0,0.00013698,2]
[329936955,1718848234755,-500.0,0.00013698,2]
[329936956,1718848234765,-505.9922923,0.00013698,2]
[329936957,1718848234774,-501.28755093,0.00013698,2]
[329936958,1718848234785,-500.0,0.00013698,2]
[329936959,1718848234794,-501.38213004,0.00013698,2]
[329936960,1718848234803,-563.19,0.00013698,2]
[329936961,1718848234812,-508.88589195,0.00013698,2]
[329936962,1718848234822,-540.12704995,0.00013698,2]
[329936963,1718848234831,-506.57252117,0.00013698,2]
[329936964,1718848234840,-509.01366166,0.00013698,2]
[329936965,1718848234849,-502.49010628,0.00013698,2]
[329936966,1718848234858,-504.92062132,0.00013698,2]
[329936967,1718848234868,-500.0,0.00013698,2]
[329936968,1718848234878,-507.40234416,0.00013698,2]
[329936969,1718848234888,-508.8506999,0.00013698,2]
[329936970,1718848235168,-500.67034447,0.00013698,2]
[329936971,1718848235187,-504.09962793,0.00013698,2]
[329936972,1718848235196,-508.12263832,0.00013698,2]
[329936973,1718848235206,-502.0395981,0.00013698,2]
[329936974,1718848235216,-500.0,0.00013698,2]
[329936975,1718848235225,-500.0,0.00013698,2]
[329936976,1718848235235,-500.0,0.00013698,2]
[329936977,1718848235245,-506.28391225,0.00013698,2]
[329936978,1718848235255,-507.27718589,0.00013698,2]
[329936979,1718848235265,-269.94484633,0.00013698,2]
[329936980,1718848235287,-232.39384002,0.00013698,2]
[329936981,1718848235297,-504.72773147,0.00013698,2]
[329936982,1718848235306,-503.06935609,0.00013698,2]
[329936983,1718848235317,-503.32101342,0.00013698,2]
[329936984,1718848235327,-503.52813912,0.00013698,2]
[329936985,1718848235336,-501.48155917,0.00013698,2]
[329936986,1718848235346,-500.0,0.00013698,2]
[329936987,1718848235355,-510.12,0.00013698,2]
[329936988,1718848235366,-607.65,0.00013698,2]
[329936989,1718848235375,-501.06184199,0.00013698,2]
[329936990,1718848235385,-111.99884296,0.00013698,2]
[329936991,1718848235398,-406.82115704,0.00013698,2]
[329936992,1718848235409,-501.61162631,0.00013698,2]
[329936993,1718848235419,-500.75038736,0.00013698,2]
[329936994,1718848235429,-502.84530997,0.00013698,2]
[329936995,1718848235439,-501.45967625,0.00013698,2]
[329936996,1718848235448,-507.21783565,0.00013698,2]
[329936997,1718848235461,-501.34036564,0.00013698,2]
[329936998,1718848235473,-503.79939744,0.00013698,2]
[329936999,1718848235482,-503.78104366,0.00013698,2]
[329937000,1718848235492,-500.0,0.00013698,2]
[329937001,1718848235504,-507.45796703,0.00013698,2]
[329937002,1718848235514,-507.62011496,0.00013698,2]
[329937003,1718848235524,-500.44820292,0.00013698,2]
[329937004,1718848235538,-502.7047251,0.00013698,2]
[329937005,1718848235548,-505.9813278,0.00013698,2]
[329937006,1718848235559,-501.29524767,0.00013698,2]
[329937007,1718848235569,-500.0,0.00013698,2]
[329937008,1718848235578,-503.15702825,0.00013698,2]
[329937009,1718848235587,-500.0,0.00013698,2]
[329937010,1718848235597,-155.29625372,0.00013698,2]
[329937011,1718848235607,-504.76958574,0.00013698,2]
[329937012,1718848235617,-506.81344912,0.00013698,2]